bitfinex-derivatives/quotes_BTCF0:USTF0_20241213
["timestamp","ask_amount","ask_price","bid_price","bid_amount"]
[1734114382437,0.00197758,101570.0,101560.0,1.32206146]
[1734114382740,0.00197758,101570.0,101560.0,1.08676851]
[1734114382944,0.049212,101580.0,101570.0,0.049214]
[1734114383136,0.049212,101580.0,101570.0,0.50326351]
[1734114383639,0.049212,101580.0,101570.0,1.70326351]
[1734114384035,0.049212,101580.0,101570.0,0.50326351]
[1734114386741,0.049212,101580.0,101570.0,0.54046351]
[1734114387446,0.049207,101590.0,101580.0,0.04921]
[1734114387641,0.049207,101590.0,101580.0,0.54075951]
[1734114388142,0.1,101600.0,101590.0,0.049205]
[1734114388143,0.149203,101600.0,101590.0,0.049205]
[1734114388337,0.149203,101600.0,101590.0,0.50325451]
[1734114388840,0.149203,101600.0,101590.0,1.70325451]
[1734114389540,0.149203,101600.0,101590.0,1.648805]
[1734114389730,0.149203,101600.0,101590.0,1.610005]
[1734114390834,0.149203,101600.0,101590.0,0.410005]
[1734114394442,0.149703,101600.0,101590.0,0.410005]
[1734114394845,0.149703,101600.0,101590.0,0.41895223]
[1734114401952,0.149703,101600.0,101590.0,1.61895223]
[1734114402347,0.149203,101600.0,101590.0,1.61895223]
[1734114404641,0.149203,101600.0,101590.0,1.79427052]
[1734114404850,0.149203,101600.0,101590.0,1.61895223]
[1734114405555,0.149203,101600.0,101590.0,1.79427052]
[1734114405757,0.16142952,101600.0,101590.0,1.79427052]
[1734114408350,0.16142952,101600.0,101590.0,1.74506552]
[1734114408554,0.16142952,101600.0,101590.0,1.98035847]
[1734114411365,0.3879929,101600.0,101590.0,1.98035847]
[1734114411654,0.3481929,101600.0,101590.0,2.07360798]
[1734114411854,0.3084929,101600.0,101590.0,2.12281798]
[1734114412047,0.3084929,101600.0,101590.0,1.24749969]
[1734114412048,0.149203,101600.0,101590.0,1.24749969]
[1734114412245,0.16142952,101600.0,101590.0,1.84767921]
[1734114412456,0.16142952,101600.0,101590.0,3.04767921]
[1734114412652,0.16142952,101600.0,101590.0,2.81238626]
[1734114413162,0.16142952,101600.0,101590.0,2.84998626]
[1734114413554,0.16142952,101600.0,101590.0,2.84868743]
[1734114414458,0.16142952,101600.0,101590.0,3.20154624]
[1734114414760,0.16142952,101600.0,101590.0,2.70154624]
[1734114415865,0.16142952,101600.0,101590.0,3.20154624]
[1734114417358,0.16142952,101600.0,101590.0,2.70154624]
[1734114418557,0.16149703,101600.0,101590.0,2.70154624]
[1734114421060,0.16149703,101600.0,101590.0,2.70226708]
[1734114423171,0.16149703,101600.0,101590.0,2.63245982]
[1734114424671,0.24856041,101610.0,101590.0,2.69350207]
[1734114424871,0.24856041,101610.0,101600.0,0.86794835]
[1734114425070,0.24856041,101610.0,101600.0,1.13463369]
[1734114425266,0.049203,101610.0,101600.0,1.13463369]
[1734114425467,0.049203,101610.0,101600.0,2.33380505]
[1734114425864,0.01229403,101610.0,101600.0,2.68666386]
[1734114426064,0.15935741,101620.0,101600.0,3.6180711]
[1734114426273,0.38716691,101630.0,101620.0,0.049195]
[1734114426575,0.21090716,101630.0,101620.0,0.94448093]
[1734114426774,0.06344967,101630.0,101620.0,0.80783746]
[1734114426983,0.05116692,101630.0,101620.0,0.80783746]
[1734114427279,0.04969,101630.0,101620.0,0.7787011]
[1734114427468,0.04919,101630.0,101620.0,1.2787011]
[1734114428476,0.04969,101630.0,101620.0,1.45512986]
[1734114428678,0.04969,101630.0,101620.0,1.2787011]
[1734114429173,0.04969,101630.0,101620.0,0.7787011]
[1734114429678,0.04919,101630.0,101620.0,0.9550703]
[1734114430475,0.04969,101630.0,101620.0,0.9550703]
[1734114431479,0.04919,101630.0,101620.0,0.9550703]
[1734114432480,0.04969,101630.0,101620.0,0.9550703]
[1734114433177,0.0005,101630.0,101620.0,1.2787011]
[1734114433380,0.0005,101630.0,101620.0,1.60484394]
[1734114433684,0.09605485,101650.0,101640.0,0.049185]
[1734114433987,0.09605485,101650.0,101640.0,0.59588128]
[1734114434475,0.05845485,101650.0,101640.0,0.59588128]
[1734114434684,0.05845485,101650.0,101640.0,0.63488128]
[1734114435183,0.05845485,101650.0,101640.0,1.3110316]
[1734114435574,0.05845485,101650.0,101640.0,1.13488128]
[1734114436085,0.05845485,101650.0,101640.0,1.6718316]
[1734114436487,0.05845485,101650.0,101640.0,1.49568128]
[1734114436984,0.07016107,101680.0,101670.0,0.049171]
[1734114437184,0.11066107,101680.0,101670.0,0.50291914]
[1734114437490,0.09114519,101680.0,101670.0,0.50291914]
[1734114437675,0.04197619,101680.0,101670.0,0.50291914]
[1734114438489,0.04197619,101680.0,101670.0,0.63726728]
[1734114438791,0.04197619,101680.0,101670.0,0.54431914]
[1734114439187,0.09114219,101680.0,101670.0,0.54431914]
[1734114439590,0.21760224,101700.0,101670.0,0.63726728]
[1734114439895,0.1,101700.0,101690.0,0.86370914]
[1734114442093,0.1,101700.0,101690.0,1.36370914]
[1734114442785,0.149156,101700.0,101690.0,0.87272493]
[1734114442987,0.1,101700.0,101690.0,0.87272493]
[1734114443184,0.1,101700.0,101690.0,1.37272493]
[1734114443887,0.1,101700.0,101690.0,0.87272493]
[1734114443888,0.149156,101700.0,101690.0,0.87272493]
[1734114444294,0.1,101700.0,101690.0,0.87272493]
[1734114445196,0.049148,101720.0,101690.0,1.37272493]
[1734114445397,0.049148,101720.0,101710.0,0.3608]
[1734114446208,0.14209614,101720.0,101710.0,0.3608]
[1734114448603,0.049148,101720.0,101710.0,0.3608]
[1734114449696,0.14209614,101720.0,101710.0,0.3608]
[1734114449897,0.049148,101720.0,101710.0,0.3608]
[1734114452790,0.049148,101720.0,101710.0,0.50290014]
[1734114452995,0.14984938,101730.0,101720.0,0.049147]
[1734114452996,0.00916741,101730.0,101720.0,0.049147]
[1734114453194,0.05061338,101740.0,101730.0,0.049142]
[1734114453195,0.00147538,101740.0,101730.0,0.049142]
[1734114453498,0.05061238,101740.0,101730.0,0.50289014]
[1734114453999,0.05061238,101740.0,101730.0,0.409942]
[1734114454702,0.05111238,101740.0,101730.0,0.409942]
[1734114455592,0.049637,101740.0,101730.0,0.50289014]
[1734114455796,0.0005,101740.0,101730.0,0.63413828]
[1734114455999,0.0005,101740.0,101730.0,1.13413828]
[1734114456408,0.0005,101740.0,101730.0,1.04119014]
[1734114457594,0.049637,101740.0,101730.0,1.04119014]
[1734114457797,0.049637,101740.0,101730.0,0.55045611]
[1734114458105,0.049637,101740.0,101730.0,1.05045611]
[1734114459204,0.049637,101740.0,101730.0,1.00131411]
[1734114460201,0.049637,101740.0,101730.0,0.50131411]
[1734114460500,0.049637,101740.0,101730.0,0.55045611]
[1734114462301,0.049637,101740.0,101730.0,0.64340425]
[1734114462508,0.049637,101740.0,101730.0,1.14340425]
[1734114463601,0.049637,101740.0,101730.0,1.05045611]
[1734114463797,0.049637,101740.0,101730.0,0.55045611]
[1734114464602,0.049637,101740.0,101730.0,0.64340425]
[1734114464805,0.049637,101740.0,101730.0,0.55045611]
[1734114465505,0.049137,101740.0,101730.0,0.55045611]
[1734114467507,0.049137,101740.0,101730.0,0.50131411]
[1734114467711,0.088537,101740.0,101730.0,0.50131411]
[1734114468006,0.088537,101740.0,101730.0,1.70131411]
[1734114468602,0.088537,101740.0,101730.0,0.55045611]
[1734114469206,0.088537,101740.0,101730.0,0.37006597]
[1734114469405,0.13828789,101740.0,101730.0,0.37006597]
[1734114469610,0.22611364,101740.0,101730.0,0.37006597]
[1734114469913,0.34371588,101740.0,101730.0,0.37006597]
[1734114470304,0.22611364,101740.0,101730.0,0.37006597]
[1734114470504,0.34371588,101740.0,101730.0,0.37006597]
[1734114471204,0.33156499,101740.0,101730.0,0.37006597]
[1734114471603,0.3437858,101740.0,101730.0,0.37006597]
[1734114472105,0.33156499,101740.0,101730.0,0.3608]
[1734114473119,0.38070199,101740.0,101730.0,0.3608]
[1734114473312,1.20166454,101740.0,101710.0,0.5]
[1734114473514,1.20166454,101740.0,101700.0,0.538107]
[1734114473515,0.049152,101710.0,101700.0,0.538107]
[1734114473808,0.049152,101710.0,101700.0,1.57185302]
[1734114473809,0.14938222,101710.0,101700.0,1.57185302]
[1734114474013,0.19068222,101710.0,101700.0,1.57185302]
[1734114474415,0.19068222,101710.0,101700.0,0.37185302]
[1734114474711,0.29579586,101710.0,101700.0,0.36277471]
[1734114475013,0.33409586,101710.0,101700.0,0.36277471]
[1734114475613,0.34632469,101710.0,101700.0,0.36227471]
[1734114476513,0.22898534,101710.0,101700.0,0.36277471]
[1734114477218,0.22898534,101710.0,101700.0,0.45572285]
[1734114477719,0.22898534,101710.0,101700.0,0.45522285]
[1734114478218,0.34632469,101710.0,101700.0,0.45522285]
[1734114478512,0.22898534,101710.0,101700.0,0.45572285]
[1734114479414,0.34632469,101710.0,101700.0,0.36277471]
[1734114479722,0.22898534,101710.0,101700.0,0.36227471]
[1734114480622,0.22898401,101710.0,101700.0,0.36277471]
[1734114480917,0.049152,101710.0,101700.0,0.59635228]
[1734114481118,0.049152,101710.0,101700.0,1.79635228]
[1734114481519,0.049152,101710.0,101700.0,1.70290414]
[1734114482212,0.049152,101710.0,101700.0,1.79585228]
[1734114482411,0.049152,101710.0,101700.0,1.70290414]
[1734114482613,0.049152,101710.0,101700.0,1.70340414]
[1734114483523,0.049152,101710.0,101700.0,1.79585228]
[1734114483725,0.13715451,101720.0,101710.0,0.049152]
[1734114483924,0.13715451,101720.0,101710.0,0.54310014]
[1734114484219,0.04915,101720.0,101710.0,1.04310014]
[1734114486615,0.04915,101720.0,101710.0,2.24310014]
[1734114487722,0.17734951,101730.0,101720.0,0.049147]
[1734114487924,0.17734951,101730.0,101720.0,0.54409514]
[1734114488221,0.089345,101730.0,101720.0,0.402]
[1734114488812,0.17734951,101730.0,101720.0,0.3608]
[1734114490724,0.049147,101720.0,101710.0,0.00950744]
[1734114491021,0.049147,101720.0,101710.0,0.50290014]
[1734114492017,0.049147,101720.0,101710.0,0.67873243]
[1734114493526,0.049147,101720.0,101710.0,0.91317548]
[1734114496530,0.049147,101720.0,101710.0,0.68819119]
[1734114497922,0.049147,101720.0,101710.0,0.73734319]
[1734114498427,0.13715151,101720.0,101710.0,0.91331399]
[1734114500631,0.13715151,101720.0,101710.0,0.73734319]
[1734114501833,0.13715151,101720.0,101710.0,0.37654319]
[1734114502035,0.13715151,101720.0,101710.0,0.73734319]
[1734114503130,0.13715151,101720.0,101710.0,0.64439505]
[1734114503639,0.13715151,101720.0,101710.0,0.59524305]
[1734114503837,0.25449086,101720.0,101710.0,0.68819119]
[1734114505233,0.13715151,101720.0,101710.0,1.030397]
[1734114505434,0.13715151,101720.0,101710.0,1.28548141]
[1734114506533,0.25449086,101720.0,101710.0,1.28548141]
[1734114506838,0.13715151,101720.0,101710.0,1.28548141]
[1734114507441,0.13715151,101720.0,101710.0,1.05103836]
[1734114508435,0.25449086,101720.0,101710.0,1.05103836]
[1734114508636,0.25449086,101720.0,101710.0,0.95809022]
[1734114508837,0.049147,101720.0,101710.0,1.41297207]
[1734114509035,0.3479437,101730.0,101720.0,0.049147]
[1734114509036,0.08800451,101730.0,101720.0,0.049147]
[1734114509244,0.31650069,101740.0,101720.0,0.049147]
[1734114509245,0.21907386,101740.0,101730.0,0.049142]
[1734114509438,0.10173451,101740.0,101730.0,2.1585884]
[1734114509635,0.10173451,101740.0,101730.0,2.51098855]
[1734114510357,0.08947967,101740.0,101730.0,0.9585884]
[1734114510547,0.08947967,101740.0,101730.0,1.05153654]
[1734114510744,0.08947967,101740.0,101730.0,2.25153654]
[1734114511549,0.08947967,101740.0,101730.0,2.26099268]
[1734114511752,0.08947967,101740.0,101730.0,2.76099268]
[1734114511959,0.00147516,101740.0,101730.0,2.76099268]
[1734114512354,0.08947967,101740.0,101730.0,2.76099268]
[1734114513255,0.08947967,101740.0,101730.0,1.56099268]
[1734114513951,0.13861667,101740.0,101730.0,1.06099268]
[1734114514957,0.049137,101740.0,101730.0,0.51234628]
[1734114515861,0.049137,101740.0,101730.0,0.56656114]
[1734114517059,0.049137,101740.0,101730.0,1.11071784]
[1734114517250,0.08819019,101750.0,101730.0,1.25280798]
[1734114517451,0.44058752,101760.0,101740.0,0.91325359]
[1734114517648,0.39095652,101760.0,101750.0,0.6787255]
[1734114517852,0.39093187,101760.0,101750.0,0.58577736]
[1734114518253,0.39090733,101760.0,101750.0,0.58577736]
[1734114518454,0.34177633,101760.0,101750.0,0.6787255]
[1734114518652,0.10088941,101760.0,101750.0,1.2373764]
[1734114518852,0.01274841,101760.0,101750.0,2.73056]
[1734114519166,0.0005,101760.0,101750.0,3.14940696]
[1734114519457,0.0005,101760.0,101750.0,3.07173484]
[1734114519662,0.049123,101770.0,101750.0,3.07173484]
[1734114519863,0.049123,101770.0,101760.0,0.67838887]
[1734114520361,0.049123,101770.0,101760.0,0.409927]
[1734114520554,0.049127,101760.0,101750.0,0.81948994]
[1734114520754,0.049627,101760.0,101750.0,0.91243808]
[1734114521261,0.049627,101760.0,101750.0,0.50287614]
[1734114521766,0.049127,101760.0,101750.0,0.50287614]
[1734114521961,0.049127,101760.0,101750.0,0.91227076]
[1734114522163,0.0399,101770.0,101750.0,0.91227076]
[1734114522464,0.089025,101770.0,101760.0,0.14207514]
[1734114522654,0.089025,101770.0,101760.0,0.049127]
[1734114523560,0.049125,101770.0,101760.0,0.50287514]
[1734114523757,0.049125,101770.0,101760.0,0.58597514]
[1734114524669,0.049625,101770.0,101760.0,0.58597514]
[1734114524867,0.049625,101770.0,101760.0,0.493027]
[1734114525067,0.049625,101770.0,101760.0,0.451427]
[1734114525659,0.049125,101770.0,101760.0,0.451427]
[1734114526869,0.049625,101770.0,101760.0,0.451427]
[1734114527353,0.14257314,101770.0,101750.0,0.54591037]
[1734114527553,0.0399,101760.0,101750.0,0.41958653]
[1734114527769,0.089027,101760.0,101750.0,0.51253467]
[1734114528371,0.049127,101760.0,101750.0,0.51253467]
[1734114528557,0.049127,101760.0,101750.0,0.55143467]
[1734114528757,0.049625,101770.0,101760.0,0.049127]
[1734114529074,0.049625,101770.0,101760.0,0.409927]
[1734114529676,0.049125,101770.0,101760.0,0.409927]
[1734114533968,0.049125,101770.0,101760.0,0.3608]
[1734114534364,0.049132,101750.0,101740.0,0.43724384]
[1734114534568,0.049137,101740.0,101730.0,0.3608]
[1734114534766,0.087637,101740.0,101730.0,0.3608]
[1734114535667,0.18058514,101740.0,101730.0,0.3608]
[1734114537380,0.2686079,101740.0,101730.0,0.3608]
[1734114538365,0.38595897,101740.0,101730.0,0.3608]
[1734114538672,0.2686079,101740.0,101730.0,0.3608]
[1734114540266,0.27812995,101740.0,101730.0,0.3608]
[1734114542173,0.27812995,101740.0,101720.0,1.83343978]
[1734114542374,0.14209014,101730.0,101720.0,0.59473978]
[1734114542768,0.14209014,101730.0,101720.0,0.3613]
[1734114543072,0.049142,101730.0,101720.0,0.3613]
[1734114543269,0.049142,101730.0,101720.0,0.410447]
[1734114543475,0.049142,101730.0,101720.0,0.448947]
[1734114543670,0.049142,101730.0,101720.0,0.448447]
[1734114544780,0.049142,101730.0,101720.0,0.448947]
[1734114546164,0.049142,101730.0,101720.0,0.3998]
[1734114546772,0.14209014,101730.0,101720.0,0.3998]
[1734114549980,0.049142,101730.0,101720.0,0.3998]
[1734114550477,0.049142,101730.0,101720.0,0.448947]
[1734114550669,0.049142,101730.0,101720.0,1.27533492]
[1734114550977,0.049142,101730.0,101720.0,0.81413492]
[1734114551185,0.049142,101730.0,101720.0,2.01413492]
[1734114551373,0.049142,101730.0,101720.0,2.51413492]
[1734114554178,0.049142,101730.0,101720.0,2.51412992]
[1734114555369,0.049142,101730.0,101720.0,2.80655465]
[1734114556175,0.049142,101730.0,101720.0,1.92118178]
[1734114556376,0.049142,101730.0,101720.0,0.72118178]
[1734114556575,0.14209014,101730.0,101720.0,0.63323978]
[1734114557080,0.049142,101730.0,101720.0,0.63323978]
[1734114558774,0.14209014,101730.0,101720.0,0.59473978]
[1734114562385,0.2301129,101730.0,101720.0,1.13808192]
[1734114562981,0.2301129,101730.0,101720.0,1.13811578]
[1734114563378,0.34746397,101730.0,101720.0,1.13811578]
[1734114564289,0.26876226,101730.0,101720.0,0.90471469]
[1734114565491,0.45425109,101730.0,101720.0,0.90471469]
[1734114565678,0.45425109,101730.0,101720.0,1.13982987]
[1734114566082,0.30756226,101730.0,101720.0,0.90471469]
[1734114566479,0.45425109,101730.0,101720.0,1.13983576]
[1734114567701,0.45425109,101730.0,101720.0,1.14007838]
[1734114568794,0.46648023,101730.0,101720.0,1.14007838]
[1734114569695,0.46652543,101730.0,101720.0,1.14007838]
[1734114572086,0.46652543,101730.0,101720.0,0.8883458]
[1734114572294,0.37357729,101730.0,101720.0,1.1402533]
[1734114572493,0.36130295,101730.0,101720.0,1.1402533]
[1734114573090,0.36130295,101730.0,101720.0,1.14011676]
[1734114573293,0.21461412,101730.0,101720.0,1.14011676]
[1734114573596,0.45425109,101730.0,101720.0,1.14011676]
[1734114573790,0.46652543,101730.0,101720.0,0.59592107]
[1734114573993,0.34917436,101730.0,101720.0,0.59592107]
[1734114574203,0.52520039,101730.0,101720.0,0.59592107]
[1734114575498,0.34917253,101730.0,101720.0,0.59592107]
[1734114579102,0.3491682,101730.0,101720.0,0.59592107]
[1734114579299,0.3171181,101730.0,101720.0,0.59592107]
[1734114579489,0.25622006,101730.0,101720.0,0.65681911]
[1734114579693,0.38381275,101730.0,101720.0,0.59592107]
[1734114579894,0.39608093,101730.0,101720.0,0.59592107]
[1734114580099,0.38381275,101730.0,101720.0,0.59592107]
[1734114580991,0.40323541,101730.0,101720.0,0.59592107]
[1734114583113,0.40323541,101730.0,101720.0,0.63522107]
[1734114583612,0.34233737,101730.0,101720.0,0.69611911]
[1734114583922,0.34233737,101730.0,101720.0,0.67752107]
[1734114584216,0.40323541,101730.0,101720.0,0.67752107]
[1734114586114,0.34233737,101730.0,101720.0,0.67752107]
[1734114586614,0.40323541,101730.0,101720.0,0.67752107]
[1734114587508,0.41550225,101730.0,101720.0,0.9699458]
[1734114587705,0.35460421,101730.0,101720.0,0.9699458]
[1734114587901,0.41550225,101730.0,101720.0,0.9699458]
[1734114588518,0.29773942,101730.0,101720.0,0.67752107]
[1734114590012,0.35863746,101730.0,101720.0,0.59592107]
[1734114590208,0.47376602,101730.0,101720.0,0.59592107]
[1734114591418,0.41286798,101730.0,101720.0,0.59592107]
[1734114591616,0.47376602,101730.0,101720.0,0.59592107]
[1734114591822,0.47376602,101730.0,101720.0,0.63542107]
[1734114592016,0.47376602,101730.0,101720.0,0.67542107]
[1734114593916,0.21741872,101730.0,101720.0,0.73631911]
[1734114594222,0.21741872,101730.0,101720.0,1.02874384]
[1734114594623,0.21741872,101730.0,101720.0,1.22038691]
[1734114595120,0.27831676,101730.0,101720.0,1.22038691]
[1734114595322,0.27831676,101730.0,101720.0,1.22027127]
[1734114595817,0.21741872,101730.0,101720.0,1.22027127]
[1734114596122,0.27831676,101730.0,101720.0,1.22027127]
[1734114597019,0.27833055,101730.0,101720.0,1.22027127]
[1734114597326,0.45435715,101730.0,101720.0,1.22027127]
[1734114599722,0.45435715,101730.0,101720.0,1.21980151]
[1734114600119,0.4450361,101730.0,101720.0,1.21980151]
[1734114600630,0.2690095,101730.0,101720.0,1.21980151]
[1734114601030,0.26901066,101730.0,101720.0,1.21980151]
[1734114601926,0.44503726,101730.0,101720.0,0.8883458]
[1734114602130,0.44503726,101730.0,101720.0,0.59592107]
[1734114602825,0.65914843,101730.0,101720.0,0.23512107]
[1734114603023,0.64686664,101730.0,101720.0,0.23512107]
[1734114603218,0.049147,101720.0,101710.0,0.8883458]
[1734114603428,0.3093225,101720.0,101710.0,1.14181011]
[1734114604326,0.24842446,101720.0,101710.0,1.20270815]
[1734114604636,0.36633154,101720.0,101710.0,1.20267368]
[1734114604929,0.35404987,101720.0,101710.0,0.90668904]
[1734114606233,0.41494791,101720.0,101710.0,0.90668904]
[1734114606421,0.48812762,101720.0,101710.0,0.90668904]
[1734114606621,0.41494791,101720.0,101710.0,1.1417142]
[1734114606827,0.29704083,101720.0,101710.0,1.1417142]
[1734114607448,0.47581669,101720.0,101710.0,1.1417142]
[1734114607734,0.44912054,101720.0,101710.0,0.88824989]
[1734114607934,0.3882225,101720.0,101710.0,0.88824989]
[1734114608533,0.3882225,101720.0,101710.0,0.59582516]
[1734114609032,0.80992054,101720.0,101710.0,0.23502516]
[1734114609227,0.80992054,101720.0,101700.0,0.52744989]
[1734114609228,0.049152,101710.0,101700.0,0.52744989]
[1734114609531,0.13755827,101710.0,101700.0,3.17972799]
[1734114609733,0.2554293,101720.0,101710.0,0.049152]
[1734114609938,0.2554293,101720.0,101710.0,1.41079692]
[1734114610138,0.2554293,101720.0,101710.0,1.55988724]
[1734114610342,0.2554293,101720.0,101710.0,1.41079692]
[1734114611336,0.2554293,101720.0,101710.0,0.9989892]
[1734114612442,0.2554293,101720.0,101710.0,1.34989888]
[1734114613835,0.2554293,101720.0,101710.0,1.10128319]
[1734114614437,0.2554293,101720.0,101710.0,1.45219287]
[1734114614955,0.2554293,101720.0,101710.0,1.10128319]
[1734114615444,0.13755427,101720.0,101710.0,1.45219287]
[1734114617449,0.2554293,101720.0,101710.0,1.35940424]
[1734114618546,0.2554293,101720.0,101710.0,1.45219287]
[1734114619542,0.2554293,101720.0,101710.0,1.10128319]
[1734114620652,0.2554293,101720.0,101710.0,1.00849456]
[1734114621152,0.16702303,101720.0,101710.0,0.98599363]
[1734114622151,0.25540162,101720.0,101710.0,0.98599363]
[1734114625555,0.25540162,101720.0,101710.0,1.34679363]
[1734114625750,0.25540162,101720.0,101710.0,1.34681114]
[1734114625955,0.049148,101720.0,101710.0,0.82085736]
[1734114627458,0.25536165,101720.0,101710.0,1.34670024]
[1734114627756,0.25536165,101720.0,101710.0,1.43948887]
[1734114627757,0.11783637,101720.0,101710.0,1.43948887]
[1734114628050,0.08453699,101730.0,101720.0,0.049147]
[1734114628253,0.08453699,101730.0,101720.0,2.31020146]
[1734114628452,0.049138,101740.0,101730.0,0.049142]
[1734114628644,0.049138,101740.0,101730.0,1.38857309]
[1734114628847,0.049138,101740.0,101730.0,1.83629122]
[1734114629046,0.049138,101740.0,101730.0,1.33629122]
[1734114629559,0.049138,101740.0,101730.0,0.98405503]
[1734114629754,0.049138,101740.0,101730.0,1.21845347]
[1734114630757,0.049138,101740.0,101730.0,1.12871147]
[1734114631057,0.14192663,101740.0,101730.0,0.23439844]
[1734114631252,0.26612663,101740.0,101720.0,1.01923237]
[1734114631456,0.049142,101730.0,101720.0,0.72604544]
[1734114631845,0.049138,101740.0,101730.0,0.049142]
[1734114632059,0.05110896,101750.0,101740.0,0.049137]
[1734114632357,0.0005,101750.0,101740.0,1.08192563]
[1734114634052,0.049632,101750.0,101740.0,2.28192563]
[1734114634457,0.049632,101750.0,101740.0,3.1608177]
[1734114635155,0.049632,101750.0,101740.0,4.04060253]
[1734114635357,0.049632,101750.0,101740.0,3.39681408]
[1734114636753,0.0005,101750.0,101740.0,3.39681408]
[1734114636957,0.0005,101750.0,101740.0,3.92556141]
[1734114637954,0.0005,101750.0,101740.0,3.39681408]
[1734114638659,0.0005,101750.0,101740.0,3.6413352]
[1734114638856,0.0005,101750.0,101740.0,3.93371138]
[1734114639053,0.0005,101750.0,101740.0,2.20638643]
[1734114639957,0.09113,101760.0,101750.0,0.049132]
[1734114640158,0.09113,101760.0,101750.0,0.64373918]
[1734114640954,0.09163,101760.0,101750.0,0.64373918]
[1734114641560,0.09163,101760.0,101750.0,0.409932]
[1734114641750,0.26901863,101760.0,101750.0,0.3608]
[1734114641949,0.26851863,101760.0,101750.0,0.3608]
[1734114642859,0.26901863,101760.0,101750.0,0.3608]
[1734114643058,0.66180726,101760.0,101750.0,0.3608]
[1734114643258,0.049137,101740.0,101730.0,0.3608]
[1734114643763,0.131537,101740.0,101730.0,0.3608]
[1734114643966,0.173937,101740.0,101730.0,0.3608]
[1734114646363,0.26672563,101740.0,101730.0,0.3608]
[1734114646561,0.049142,101730.0,101720.0,0.36227438]
[1734114646762,0.14193063,101730.0,101720.0,0.36227438]
[1734114647864,0.14193063,101730.0,101720.0,0.3608]
[1734114650368,0.049142,101730.0,101720.0,0.3608]
[1734114650964,0.049142,101730.0,101720.0,0.409947]
[1734114652360,0.049142,101730.0,101720.0,1.609947]
[1734114652562,0.049142,101730.0,101720.0,0.409947]
[1734114652764,0.049142,101730.0,101720.0,0.3608]
[1734114653666,0.14193063,101730.0,101720.0,0.3608]
[1734114654367,0.23471926,101730.0,101720.0,0.53607983]
[1734114654564,0.23471926,101730.0,101720.0,0.3608]
[1734114654975,0.14193063,101730.0,101720.0,0.3608]
[1734114660773,0.14193063,101730.0,101720.0,0.409947]
[1734114660973,0.049142,101730.0,101720.0,0.409947]
[1734114661274,0.049142,101730.0,101720.0,1.16293253]
[1734114661470,0.049137,101740.0,101730.0,0.049142]
[1734114661672,0.049137,101740.0,101730.0,0.409942]
[1734114661861,0.049137,101740.0,101730.0,0.951142]
[1734114662070,0.049137,101740.0,101730.0,0.62642753]
[1734114662265,0.14192563,101740.0,101730.0,0.3608]
[1734114662481,0.049142,101730.0,101720.0,2.09664257]
[1734114662664,0.049142,101730.0,101720.0,1.86292853]
[1734114663071,0.049142,101730.0,101720.0,0.66292853]
[1734114663378,0.049142,101730.0,101720.0,0.67251874]
[1734114663671,0.049142,101730.0,101720.0,1.87251874]
[1734114663877,0.049142,101730.0,101720.0,1.74023321]
[1734114664278,0.049142,101730.0,101720.0,2.24023321]
[1734114664679,0.049142,101730.0,101720.0,2.47385447]
[1734114664872,0.049141,101740.0,101730.0,0.049139]
[1734114665073,0.049141,101740.0,101730.0,0.58515459]
[1734114665473,0.049141,101740.0,101730.0,0.409939]
[1734114666577,0.14192963,101740.0,101730.0,0.53601735]
[1734114666883,0.18142963,101740.0,101730.0,0.3608]
[1734114668072,0.049142,101730.0,101720.0,0.89648248]
[1734114670578,0.049142,101730.0,101720.0,0.487642]
[1734114671389,0.049142,101730.0,101720.0,0.89716034]
[1734114672577,0.049142,101730.0,101720.0,1.25503802]
[1734114672975,0.049142,101730.0,101720.0,0.487642]
[1734114673885,0.049142,101730.0,101720.0,1.25489051]
[1734114674987,0.049142,101730.0,101720.0,1.25550744]
[1734114675377,0.14193063,101730.0,101720.0,1.25550744]
[1734114675785,0.14193063,101730.0,101720.0,1.12866544]
[1734114675981,0.28911945,101730.0,101720.0,0.17573531]
[1734114676184,0.19633182,101730.0,101720.0,0.58568231]
[1734114676486,0.049143,101730.0,101720.0,0.6848006]
[1734114676785,0.049141,101740.0,101730.0,0.049142]
[1734114676983,0.049141,101740.0,101730.0,0.98463665]
[1734114677185,0.049141,101740.0,101730.0,1.61822528]
[1734114677384,0.049141,101740.0,101730.0,1.52543665]
[1734114678081,0.049141,101740.0,101730.0,0.492242]
[1734114678887,0.049141,101740.0,101730.0,1.25748018]
[1734114679192,0.049141,101740.0,101730.0,1.25744391]
[1734114679689,0.049141,101740.0,101730.0,1.02338216]
[1734114680085,0.049141,101740.0,101730.0,1.25734826]
[1734114681083,0.049141,101740.0,101730.0,1.20820626]
[1734114681284,0.14192963,101740.0,101730.0,1.16740626]
[1734114681487,0.049141,101740.0,101730.0,1.16740626]
[1734114682083,0.049141,101740.0,101730.0,0.4023]
[1734114682885,0.049141,101740.0,101730.0,1.16620448]
[1734114683390,0.049141,101740.0,101730.0,1.21534648]
[1734114683587,0.049141,101740.0,101730.0,1.71534648]
[1734114684587,0.049141,101740.0,101730.0,1.27805388]
[1734114684891,0.049141,101740.0,101730.0,1.84908462]
[1734114685685,0.049141,101740.0,101730.0,1.52255448]
[1734114685879,0.049141,101740.0,101730.0,1.7564283]
[1734114686783,0.049141,101740.0,101730.0,1.1664863]
[1734114686784,0.14192963,101740.0,101730.0,1.1664863]
[1734114687188,0.14192963,101740.0,101730.0,0.4023]
[1734114687590,0.14192963,101740.0,101730.0,0.46083422]
[1734114687988,0.049141,101740.0,101730.0,1.22534324]
[1734114688687,0.049141,101740.0,101730.0,1.17620124]
[1734114688895,0.049141,101740.0,101730.0,1.22534324]
[1734114690788,0.14192963,101740.0,101730.0,1.22534324]
[1734114691292,0.092841,101740.0,101730.0,1.22534324]
[1734114692290,0.092841,101740.0,101730.0,0.46083422]
[1734114693091,0.092841,101740.0,101730.0,1.2260933]
[1734114694190,0.092841,101740.0,101730.0,1.22711096]
[1734114696398,0.092841,101740.0,101730.0,0.99317254]
[1734114696791,0.092841,101740.0,101730.0,1.22713881]
[1734114698303,0.092841,101740.0,101730.0,0.46083422]
[1734114699099,0.092841,101740.0,101730.0,1.22720688]
[1734114699800,0.092841,101740.0,101730.0,0.99323252]
[1734114701691,0.092841,101740.0,101730.0,1.22728676]
[1734114702197,0.092841,101740.0,101730.0,0.99323252]
[1734114703308,0.15371919,101740.0,101730.0,0.99323252]
[1734114704205,0.15371919,101740.0,101730.0,0.99280404]
[1734114704706,0.15371919,101740.0,101730.0,0.63200404]
[1734114705013,0.21459738,101740.0,101730.0,1.35360404]
[1734114705202,0.15371919,101740.0,101730.0,1.35360404]